{"text_format":"3","workbook":"xlsx","n_sheets":3,"sheets":["   Quiz  ","Plan","Ecritures"],"not_rendered":{"macros":1},"read":"whole","date_system":"1900"}

{"sheet":"   Quiz  ","index":0,"n_rows":0,"n_cols":0,"rows_kept":0}

{"sheet":"Plan","index":1,"n_rows":73,"n_cols":6,"rows_kept":73,"merged":[[1,1,1,4],[2,1,2,4]]}
[]
[null,"Plan comptable PME"]
[null,"Groupes de comptes"]
[null,"                 ACTIFS CIRCULANTS",{"$nulls":3},{"$f":"B4&\"  \"&C4","v":"                 ACTIFS CIRCULANTS  "}]
[null,10,"Liquidités et titres",null,null,{"$f":"B5&\"  \"&C5","v":"10  Liquidités et titres"}]
[null,11,"Créances",null,null,"11  Créances"]
[null,12,"Stocks et travaux en cours",null,null,"12  Stocks et travaux en cours"]
[null,13,"Actifs de régulations",null,null,"13  Actifs de régulations"]
[{"$nulls":5}," ------------------------------------------------"]
[null,"                 ACTIFS IMMOBILISÉS",{"$nulls":3},"                 ACTIFS IMMOBILISÉS  "]
[null,14,"Immobilisations financières",null,null,"14  Immobilisations financières"]
[null,15,"Immobilisations meubles",null,null,"15  Immobilisations meubles"]
[null,16,"Immobilisations immeubles",null,null,"16  Immobilisations immeubles"]
[null,17,"Immobilisations incorporelles",null,null,"17  Immobilisations incorporelles"]
[{"$nulls":5}," ------------------------------------------------"]
[null,"               DETTES À COURT TERME",{"$nulls":3},"               DETTES À COURT TERME  "]
[null,20,"Dettes fournisseurs",null,null,"20  Dettes fournisseurs"]
[null,21,"Dettes financières à court terme",null,null,"21  Dettes financières à court terme"]
[null,22,"Autres dettes envers des tiers",null,null,"22  Autres dettes envers des tiers"]
[null,23,"Passifs de régulations",null,null,"23  Passifs de régulations"]
[{"$nulls":5}," ------------------------------------------------"]
[null,"                DETTES À LONG TERME",{"$nulls":3},"                DETTES À LONG TERME  "]
[null,24,"Dettes financières à long terme",null,null,"24  Dettes financières à long terme"]
[null,25,"Autres dettes à long terme",null,null,"25  Autres dettes à long terme"]
[null,26,"Provisions",null,null,"26  Provisions"]
[{"$nulls":5}," ------------------------------------------------"]
[null,"                 CAPITAUX PROPRES",{"$nulls":3},"                 CAPITAUX PROPRES  "]
[null,28,"Capital",null,null,"28  Capital"]
[{"$nulls":5}," ------------------------------------------------"]
[null,"               CHIFFRE D'AFFAIRES",{"$nulls":3},"               CHIFFRE D'AFFAIRES  "]
[null,30,"Chiffre d'affaires production",null,null,"30  Chiffre d'affaires production"]
[null,32,"Ventes de marchandises",null,null,"32  Ventes de marchandises"]
[null,34,"Ventes de services",null,null,"34  Ventes de services"]
[null,36,"Autres produits",null,null,"36  Autres produits"]
[null,37,"Prestations à soi-même",null,null,"37  Prestations à soi-même"]
[null,39,"Déductions sur les ventes",null,null,"39  Déductions sur les ventes"]
[{"$nulls":5}," ------------------------------------------------"]
[null,"               CHARGES MARCHANDISES",{"$nulls":3},"               CHARGES MARCHANDISES  "]
[null,40,"Achats et charges sur matière",null,null,"40  Achats et charges sur matière"]
[null,42,"Achats et charges sur marchandises",null,null,"42  Achats et charges sur marchandises"]
[null,44,"Prestations de tiers",null,null,"44  Prestations de tiers"]
[{"$nulls":5}," ------------------------------------------------"]
[null,"               CHARGES DE PERSONNEL",{"$nulls":3},"               CHARGES DE PERSONNEL  "]
[null,52,"Salaires",null,null,"52  Salaires"]
[null,57,"Charges sociales",null,null,"57  Charges sociales"]
[null,58,"Autres charges de personnel",null,null,"58  Autres charges de personnel"]
[{"$nulls":5}," ------------------------------------------------"]
[null,"                           A .C. E.",{"$nulls":3},"                           A .C. E.  "]
[null,60,"Loyer",null,null,"60  Loyer"]
[null,61,"Entretien, réparations",null,null,"61  Entretien, réparations"]
[null,62,"Véhicules et transports",null,null,"62  Véhicules et transports"]
[null,63,"Assurances et taxes",null,null,"63  Assurances et taxes"]
[null,64,"Energie",null,null,"64  Energie"]
[null,65,"Administration et informatique",null,null,"65  Administration et informatique"]
[null,66,"Publicité",null,null,"66  Publicité"]
[null,67,"Autre charges d'exploitation",null,null,"67  Autre charges d'exploitation"]
[null,68,"Frais financiers, intérêts",null,null,"68  Frais financiers, intérêts"]
[null,69,"Amortissement",null,null,"69  Amortissement"]
[{"$nulls":5}," ------------------------------------------------"]
[null,"                ACTIVITÉS ANNEXES",{"$nulls":3},"                ACTIVITÉS ANNEXES  "]
[null,70,"Résultat des activités annexes",null,null,"70  Résultat des activités annexes"]
[null,74,"Résultat des placements financiers",null,null,"74  Résultat des placements financiers"]
[null,75,"Résultat des immeubles",null,null,"75  Résultat des immeubles"]
[{"$nulls":5}," ------------------------------------------------"]
[null,"               RÉSULTATS EXCEPTIONNELS",{"$nulls":3},"               RÉSULTATS EXCEPTIONNELS  "]
[null,80,"Résultat exceptionnel",null,null,"80  Résultat exceptionnel"]
[null,89,"Charges d'impôt",null,null,"89  Charges d'impôt"]
[{"$nulls":5}," ------------------------------------------------"]
[null,"                      CLÔTURE",{"$nulls":3},{"$f":"B69&\"  \"&C69","v":"                      CLÔTURE  "}]
[null,90,"Compte de résultat",null,null,{"$f":"B70&\"  \"&C70","v":"90  Compte de résultat"}]
[null,91,"Bilan",null,null,{"$f":"B71&\"  \"&C71","v":"91  Bilan"}]
[null,99,"Corrections et regroupements",null,null,{"$f":"B72&\"  \"&C72","v":"99  Corrections et regroupements"}]
[null,null,"  ",null,null,{"$f":"B73&\"  \"&C73","v":"    "}]

{"sheet":"Ecritures","index":2,"n_rows":118,"n_cols":15,"rows_kept":118,"merged":[[11,10,11,14]]}
[{"$nulls":10},"Leçon",1,{"$f":"O1-N1","v":15},{"$f":"COUNTIF($D$3:$D$201,\"< 100\")","v":0},{"$f":"COUNTIF($D$3:$D$201,\"<200\")","v":15}]
[{"$nulls":5},"débit","crédit",{"$nulls":4},2,{"$f":"O2-N2","v":11},{"$f":"COUNTIF($D$3:$D$201,\"<200\")","v":15},{"$f":"COUNTIF($D$3:$D$201,\"<300\")","v":26}]
["Leçon 1","Sans influence",null,101,"Remboursement d'un prêt bancaire à long terme par virement postal",24,10,{"$nulls":4},3,10,{"$f":"COUNTIF($D$3:$D$201,\"<300\")","v":26},{"$f":"COUNTIF($D$3:$D$201,\"<400\")","v":36}]
[{"$nulls":3},102,"Un employé rembourse en liquide un prêt accordé il y a un an.",10,11,{"$nulls":4},4,13,{"$f":"COUNTIF($D$3:$D$201,\"<400\")","v":36},{"$f":"COUNTIF($D$3:$D$201,\"<500\")","v":49}]
[{"$nulls":3},103,"Virement postaux en faveur de fournisseurs",20,10,{"$nulls":4},5,4,{"$f":"COUNTIF($D$3:$D$201,\"<500\")","v":49},{"$f":"COUNTIF($D$3:$D$201,\"<600\")","v":53}]
[{"$nulls":3},104,"Achat de mobilier à crédit",15,20,{"$nulls":4},6,12,{"$f":"COUNTIF($D$3:$D$201,\"<600\")","v":53},{"$f":"COUNTIF($D$3:$D$201,\"<700\")","v":65}]
[{"$nulls":3},105,"Achat d'un ordinateur par EC",15,10,{"$nulls":4},7,13,{"$f":"COUNTIF($D$3:$D$201,\"<700\")","v":65},{"$f":"COUNTIF($D$3:$D$201,\"<800\")","v":78}]
[{"$nulls":3},106,"Prélèvement du patron au Postomat",28,10,{"$nulls":4},8,6,{"$f":"COUNTIF($D$3:$D$201,\"<800\")","v":78},{"$f":"COUNTIF($D$3:$D$201,\"<900\")","v":84}]
[{"$nulls":3},107,"Titres vendus par la banque",10,10,{"$nulls":4},9,6,{"$f":"COUNTIF($D$3:$D$201,\"<900\")","v":84},{"$f":"COUNTIF($D$3:$D$201,\"<1000\")","v":90}]
[{"$nulls":3},108,"Virement postal en faveur de notre compte \"Emprunt bancaire à court terme\"",21,10,{"$nulls":4},10,{"$f":"O10-N10","v":6},{"$f":"COUNTIF($D$3:$D$201,\"<1000\")","v":90},{"$f":"COUNTIF($D$3:$D$201,\"<1100\")","v":96}]
[{"$nulls":3},109,"Vendu contre facture une machine usagée.",11,15,{"$nulls":4},11,{"$f":"O11-N11","v":4},{"$f":"COUNTIF($D$3:$D$201,\"<1100\")","v":96},{"$f":"COUNTIF($D$3:$D$201,\"<1200\")","v":100}]
[{"$nulls":3},110,"Acheté un véhicule d'occasion - Paiement en liquide",15,10,{"$nulls":3},"Bloc pour tirage au sort"]
[{"$nulls":3},111,"Paiement d'un client à notre compte postal",10,11]
[{"$nulls":3},112,"Remboursé une part de l'hypothèque par virement postal",24,10]
[{"$nulls":3},113,"Achat d'un petit bâtiment, entièrement financé par l'augmentation de l'hypothèque sur l'immeuble de la société",16,24]
[{"$nulls":3},114,"Vendu un brevet à crédit",11,17]
[{"$nulls":3},115,"Goodwill pour un nouveau magasin payé par le compte emprunt bancaire",17,21]
[]
["Leçon 2","Avec influence",null,201,"Intérêts sur l'emprunt bancaire à long terme",68,24]
[{"$nulls":3},202,"Achat de timbres poste",65,10]
[{"$nulls":3},203,"Achat de benzine pour la camionnette",62,10]
[{"$nulls":3},204,"Reçu la facture du garage pour le service de la camionnette",62,20]
[{"$nulls":3},205,"Reçu la facture du garage pour la voiture de la femme du patron.",28,20]
[{"$nulls":3},206,"Payé par banque une facture de garage déjà comptabilisée",20,10]
[{"$nulls":3},207,"Payé cash du petit matériel de bureau",65,10]
[{"$nulls":3},208,"Payé la facture d'électricité par virement postal",64,10]
[{"$nulls":3},209,"Vente de la camionnette au comptant",10,15]
[{"$nulls":3},210,"Achat à crédit d'une nouvelle camionnette",15,20]
[{"$nulls":3},211,"Publicité dans le journal d'un client. Montant à porter en compte",66,11]
[]
["Leçon 3","Trésorerie",null,301,"Payé un créancier par giro",21,10]
[{"$nulls":3},302,"Payé un fournisseur par yellow net",20,10]
[{"$nulls":3},303,"Paiement d'un client par BVR",10,11]
[{"$nulls":3},304,"Taxes postales",68,10]
[{"$nulls":3},305,"Payé la facture d'électricité par bulletin de versement rose",64,10]
[{"$nulls":3},306,"Encaissé un chèque bancaire tiré sur un client",10,11]
[{"$nulls":3},307,"Viré de notre compte \"Emprunt bancaire à long terme\" sur notre compte postal",10,24]
[{"$nulls":3},308,"Un client paie cash des honoraires que nous n'avons pas encore facturés.",10,34]
[{"$nulls":3},309,"Reçu de l'assurance incendie un chèque barré payable auprès de notre banque \"Emprunt court terme\".",21,80]
[{"$nulls":3},310,"Acheté une machine contre des titres de notre portefeuille",15,10]
[]
["Leçon 4","Divers",null,401,"La banque porte en compte l'intérêt en notre faveur sur notre compte courant",10,74]
[{"$nulls":3},402,"Facturé des honoraires à des clients",11,34]
[{"$nulls":3},403,"Reçu avis de crédit de la banque pour le paiement d'un client",10,11]
[{"$nulls":3},404,"Reçu la facture pour l'achat de pneus",62,20]
[{"$nulls":3},405,"Payé un fournisseur par chèque sur notre compte \"Emprunt bancaire\"",20,21]
[{"$nulls":3},406,"Enregistrement d'une perte sur un client, avec influence sur la marge brute.",32,11]
[{"$nulls":3},407,"Versement en espèce du chef de l'entreprise",10,28]
[{"$nulls":3},408,"Emprunté à l'oncle dl'Amérique pour remboursé l'hypothèque",24,25]
[{"$nulls":3},409,"Payé par poste, l'assurance maladie du patron",28,10]
[{"$nulls":3},410,"Payé par poste, l'assurance RC du commerce",63,10]
[{"$nulls":3},411,"Utilisé le compte \"Emprunt à court terme\" pour payer le loyer",60,21]
[{"$nulls":3},412,"La banque \"Emprunt long terme\" porte en compte les intérêts",68,24]
[{"$nulls":3},413,"Mis en compte les intérêts sur les fonds propres",68,28]
[]
["Leçon 5","Clôture",null,501,"Virement du solde pour balance des produits d'immeubles",75,90]
[{"$nulls":3},502,"Virement du bénéfice d'exploitation dans le compte du patron",90,28]
[{"$nulls":3},503,"Inventaire final des marchandises",91,12]
[{"$nulls":3},504,"Résultat du compte Privé considéré comme autofinancement",28,28]
[]
["Leçon 6","Ajustements",null,601,"Clôture. Abonnement à une revue, payé pour l'année prochaine",13,65]
[{"$nulls":3},602,"Clôture. Loyer d'un locataire encaissé d'avance",75,23]
[{"$nulls":3},603,"Clôture. Frais de téléphone à payer",65,23]
[{"$nulls":3},604,"Clôture. Ristourne sur marchandise à recevoir en janvier pour l'année en cours",13,42]
[{"$nulls":3},605,"Clôture. Perte de caisse",67,10]
[{"$nulls":3},606,"Clôture. Amortissement indirect du véhicule",69,15]
[{"$nulls":3},607,"Clôture. Amortissement direct du mobilier",69,15]
[{"$nulls":3},608,"Ouverture. Extroune d'une prime d'assurance véhicule payée d'avance",62,13]
[{"$nulls":3},609,"Ouverture. Extourne d'un loyer encaissé d'avance",23,75]
[{"$nulls":3},610,"Ouverture. Extourne pour l'électricité de décembre à payer",23,64]
[{"$nulls":3},611,"Création d'une provision pour pertes sur créances, sans modifier la marge brute",80,11]
[{"$nulls":3},612,"Utilisation de la provision pour amortir une perte sur un client sans influence sur la marge brute",11,80]
[]
["Leçon 7","Marchandises",null,701,"Achats de marchandises à crédit",42,20]
[{"$nulls":3},702,"Vente de marchandises au comptant",10,32]
[{"$nulls":3},703,"Escomptes accordés sur vente de marchandises",32,11]
[{"$nulls":3},704,"Remise obtenues sur une facture de marchandises",20,42]
[{"$nulls":3},705,"Diminution du stock",42,12]
[{"$nulls":3},706,"Augmentation du stock",12,42]
[{"$nulls":3},707,"Emballages perdus payés cash",62,10]
[{"$nulls":3},708,"Commissions internes payées par giro à nos représentants",52,10]
[{"$nulls":3},709,"Commissions versées cash à des tiers indépendants",32,10]
[{"$nulls":3},710,"Facturé des frais de livraison à un client",11,32]
[{"$nulls":3},711,"Achat de matière première financé par un prêt à long terme",40,24]
[{"$nulls":3},712,"Rabais obtenu sur une livraison de matière première",20,40]
[{"$nulls":3},713,"Achat à crédit  d'emballages qui seront facturés aux clients",42,20]
[]
["Leçon 8 ","Salaires",null,801,"Versé une avance de salaire à un employé",52,10]
[{"$nulls":3},802,"Ordre de paiement à la banque pour le versement des salaires nets",52,10]
[{"$nulls":3},803,"Paiement des primes LAA",57,10]
[{"$nulls":3},804,"Paiement de salaires. Retenues pour les charges sociales",52,21]
[{"$nulls":3},805,"Payé par poste le montant dû à l'AVS",21,10]
[{"$nulls":3},806,"Paiement de salaires. Charges sociales à la charge du patron",57,21]
[]
["Leçon 9","TVA",null,901,"Part TVA sur notre facture à un client",11,22]
[{"$nulls":3},902,"Part TVA sur la facture du mobilier acheté",11,20]
[{"$nulls":3},903,"Ventes à crédit, montant net",11,32]
[{"$nulls":3},904,"Part TVA sur ventes à crédit",11,22]
[{"$nulls":3},905,"Prestations à soi-même. (Marchandise prélevée par le patron)",28,37]
[{"$nulls":3},906,"Part TVA sur achat de marchandises destinées à la vente",11,42]
[]
[]
["Leçon 10","Titres",null,1001,"Intérêt couru lors de l'achat d'une obligation",74,10]
[{"$nulls":3},1002,"Intérêt couru lors de la vente d'une obligation",10,74]
[{"$nulls":3},1003,"Achat d'une action",10,10]
[{"$nulls":3},1004,"Vente d'une action",10,10]
[{"$nulls":3},1005,"Encaissement d'un coupon, montant net",10,74]
[{"$nulls":3},1006,"Impôt anticipé sur coupon encaissé",11,74]
[]
["Leçon 11","Immeubles",null,1101,"Achat d'un immeuble. Opération à porter au compte du vendeur.",16,22]
[{"$nulls":3},1102,"Achat immeuble. Le montant de l'hypothèque est viré sur notre compte bancaire",10,24]
[{"$nulls":3},1103,"Achat immeuble. Payé le vendeur par chèque bancaire.",22,10]
[{"$nulls":3},1104,"Achat immeuble. Payé frais de notaire cash.",16,10]
[]
[]
[]
[]
[{"$nulls":3},1200]